fUST/lending_fUST_20260516
["ID","MTS","AMOUNT","RATE_DAILY","PERIOD"]
[422348236,1778860854000,-2165.88741796,5.18e-05,2]
[422348239,1778861030000,5000.0,5e-05,2]
[422348240,1778861052000,441.4710003,5e-05,2]
[422348241,1778861061000,274.71521329,5e-05,2]
[422348243,1778861070000,5000.0,5e-05,2]
[422348258,1778861287000,5000.0,5e-05,2]
[422348309,1778861431000,-190.13,5.125e-05,2]
[422348307,1778861431000,-378.59686836,5.077e-05,2]
[422348353,1778861432000,-300.0,5.336e-05,2]
[422348355,1778861432000,-300.0,5.336e-05,2]
[422348357,1778861432000,-300.0,5.336e-05,2]
[422348361,1778861432000,-300.0,5.336e-05,2]
[422348342,1778861432000,-132.55150146,5.285e-05,2]
[422348363,1778861432000,-300.0,5.336e-05,2]
[422348340,1778861432000,-485.41396517,5.232e-05,2]
[422348345,1778861432000,-27.61393054,5.285e-05,2]
[422348351,1778861432000,-300.0,5.336e-05,2]
[422348359,1778861432000,-300.0,5.336e-05,2]
[422348338,1778861432000,-500.0,5.232e-05,2]
[422348323,1778861432000,-868.49503252,5.231e-05,2]
[422348336,1778861432000,-500.0,5.232e-05,2]
[422348350,1778861432000,-300.0,5.336e-05,2]
[422348334,1778861432000,-500.0,5.232e-05,2]
[422348332,1778861432000,-133.35412491,5.232e-05,2]
[422348321,1778861432000,-300.0,5.231e-05,2]
[422348317,1778861432000,-176.64005765,5.231e-05,2]
[422348313,1778861432000,-300.0,5.231e-05,2]
[422348311,1778861432000,-300.0,5.23e-05,2]
[422348320,1778861432000,-123.35994235,5.231e-05,2]
[422348315,1778861432000,-300.0,5.231e-05,2]
[422348327,1778861432000,-331.50496748,5.231e-05,2]
[422348347,1778861432000,-216.794795,5.305e-05,2]
[422348329,1778861432000,-366.64587509,5.232e-05,2]
[422348369,1778861432000,-300.0,5.336e-05,2]
[422348365,1778861432000,-300.0,5.336e-05,2]
[422348409,1778861432000,-864.0,6.584e-05,2]
[422348401,1778861432000,-587.0,6.33e-05,2]
[422348412,1778861432000,-1413.9981372,6.797e-05,2]
[422348414,1778861432000,-554.4573096,6.962e-05,2]
[422348405,1778861432000,-2351.0,6.33e-05,2]
[422348407,1778861432000,-160.165432,6.561e-05,2]
[422348391,1778861432000,-1680.0,5.754e-05,2]
[422348410,1778861432000,-250.0,6.708e-05,2]
[422348399,1778861432000,-204.0,6.33e-05,2]
[422348397,1778861432000,-481.0,6.33e-05,2]
[422348393,1778861432000,-160.165432,5.923e-05,2]
[422348403,1778861432000,-481.0,6.33e-05,2]
[422348385,1778861432000,-420.0,5.754e-05,2]
[422348395,1778861432000,-720.0,5.986e-05,2]
[422348371,1778861432000,-300.0,5.336e-05,2]
[422348377,1778861432000,-300.0,5.336e-05,2]
[422348380,1778861432000,-600.0,5.442e-05,2]
[422348375,1778861432000,-300.0,5.336e-05,2]
[422348374,1778861432000,-300.0,5.336e-05,2]
[422348384,1778861432000,-420.0,5.754e-05,2]
[422348382,1778861432000,-151.0,5.455e-05,2]
[422348387,1778861432000,-420.0,5.754e-05,2]
[422348389,1778861432000,-420.0,5.754e-05,2]
[422348367,1778861432000,-300.0,5.336e-05,2]
[422348447,1778861434000,2153.65632274,5e-05,2]
[422348522,1778861438000,-500.0,7.599e-05,2]
[422348553,1778861438000,-500.0,7.599e-05,2]
[422348536,1778861438000,-500.0,7.599e-05,2]
[422348534,1778861438000,-500.0,7.599e-05,2]
[422348538,1778861438000,-500.0,7.599e-05,2]
[422348541,1778861438000,-500.0,7.599e-05,2]
[422348551,1778861438000,-500.0,7.599e-05,2]
[422348543,1778861438000,-500.0,7.599e-05,2]
[422348519,1778861438000,-500.0,7.599e-05,2]
[422348559,1778861438000,-500.0,7.599e-05,2]
[422348554,1778861438000,-500.0,7.599e-05,2]
[422348547,1778861438000,-500.0,7.599e-05,2]
[422348549,1778861438000,-500.0,7.599e-05,2]
[422348557,1778861438000,-500.0,7.599e-05,2]
[422348560,1778861438000,-500.0,7.599e-05,2]
[422348562,1778861438000,-500.0,7.599e-05,2]
[422348568,1778861438000,-500.0,7.599e-05,2]
[422348525,1778861438000,-500.0,7.599e-05,2]
[422348567,1778861438000,-500.0,7.599e-05,2]
[422348545,1778861438000,-500.0,7.599e-05,2]
[422348521,1778861438000,-500.0,7.599e-05,2]
[422348507,1778861438000,-500.0,7.599e-05,2]
[422348532,1778861438000,-500.0,7.599e-05,2]
[422348571,1778861438000,-500.0,7.599e-05,2]
[422348487,1778861438000,-3292.0,6.962e-05,2]
[422348489,1778861438000,-446.74430466,7.077e-05,2]
[422348486,1778861438000,-268.5426904,6.962e-05,2]
[422348491,1778861438000,-160.165432,7.198e-05,2]
[422348493,1778861438000,-1000.0,7.243e-05,2]
[422348497,1778861438000,-500.0,7.599e-05,2]
[422348495,1778861438000,-500.0,7.599e-05,2]
[422348503,1778861438000,-500.0,7.599e-05,2]
[422348509,1778861438000,-457.29064802,7.599e-05,2]
[422348505,1778861438000,-500.0,7.599e-05,2]
[422348511,1778861438000,-42.70935198,7.599e-05,2]
[422348499,1778861438000,-500.0,7.599e-05,2]
[422348501,1778861438000,-500.0,7.599e-05,2]
[422348513,1778861438000,-400.00000001,7.599e-05,2]
[422348515,1778861438000,-500.0,7.599e-05,2]
[422348526,1778861438000,-500.0,7.599e-05,2]
[422348528,1778861438000,-500.0,7.599e-05,2]
[422348517,1778861438000,-500.0,7.599e-05,2]
[422348530,1778861438000,-357.04066104,7.599e-05,2]
[422348574,1778861438000,-500.0,7.599e-05,2]
[422348591,1778861438000,-500.0,7.599e-05,2]
[422348564,1778861438000,-500.0,7.599e-05,2]
[422348614,1778861438000,-309.43569626,7.599e-05,2]
[422348611,1778861438000,-500.0,7.599e-05,2]
[422348619,1778861438000,-500.0,7.599e-05,2]
[422348618,1778861438000,-500.0,7.599e-05,2]
[422348621,1778861438000,-500.0,7.599e-05,2]
[422348623,1778861438000,-500.0,7.599e-05,2]
[422348630,1778861438000,-271.39540886,7.599e-05,2]
[422348628,1778861438000,-500.0,7.599e-05,2]
[422348625,1778861438000,-423.49243763,7.599e-05,2]
[422348616,1778861438000,-190.56430374,7.599e-05,2]
[422348626,1778861438000,-500.0,7.599e-05,2]
[422348636,1778861438000,-500.0,7.599e-05,2]
[422348639,1778861438000,-500.0,7.599e-05,2]
[422348633,1778861438000,-228.60459114,7.599e-05,2]
[422348641,1778861438000,-500.0,7.599e-05,2]
[422348651,1778861438000,-952.97724851,7.6e-05,2]
[422348643,1778861438000,-307.90919322,7.599e-05,2]
[422348647,1778861438000,-2371.39540886,7.6e-05,2]
[422348572,1778861438000,-500.0,7.599e-05,2]
[422348645,1778861438000,-92.09080678,7.599e-05,2]
[422348637,1778861438000,-500.0,7.599e-05,2]
[422348610,1778861438000,-500.0,7.599e-05,2]
[422348649,1778861438000,-22915.02475002,7.6e-05,2]
[422348602,1778861438000,-500.0,7.599e-05,2]
[422348576,1778861438000,-500.0,7.599e-05,2]
[422348585,1778861438000,-500.0,7.599e-05,2]
[422348593,1778861438000,-500.0,7.599e-05,2]
[422348594,1778861438000,-500.0,7.599e-05,2]
[422348586,1778861438000,-500.0,7.599e-05,2]
[422348587,1778861438000,-500.0,7.599e-05,2]
[422348595,1778861438000,-596.14837835,7.599e-05,2]
[422348588,1778861438000,-500.0,7.599e-05,2]
[422348589,1778861438000,-500.0,7.599e-05,2]
[422348578,1778861438000,-500.0,7.599e-05,2]
[422348592,1778861438000,-500.0,7.599e-05,2]
[422348590,1778861438000,-500.0,7.599e-05,2]
[422348598,1778861438000,-500.0,7.599e-05,2]
[422348604,1778861438000,-500.0,7.599e-05,2]
[422348601,1778861438000,-500.0,7.599e-05,2]
[422348606,1778861438000,-500.0,7.599e-05,2]
[422348599,1778861438000,-500.0,7.599e-05,2]
[422348597,1778861438000,-500.0,7.599e-05,2]
[422348596,1778861438000,-500.0,7.599e-05,2]
[422348608,1778861438000,-500.0,7.599e-05,2]
[422348684,1778861440000,-500.0,7.6e-05,2]
[422348680,1778861440000,-1258.43671265,7.6e-05,2]
[422348676,1778861440000,-1019.05201729,7.6e-05,2]
[422348677,1778861440000,-2630.92793434,7.6e-05,2]
[422348675,1778861440000,-7909.01872154,7.6e-05,2]
[422348682,1778861440000,-985.55645327,7.6e-05,2]
[422348707,1778861443000,-813.5,7.6e-05,2]
[422348705,1778861443000,-5000.0,7.523e-05,2]
[422348706,1778861443000,-808.49999837,7.6e-05,2]
[422348709,1778861443000,-468.942,7.6e-05,2]
[422348708,1778861443000,-47.78115349,7.6e-05,2]
[422348710,1778861443000,-1376.42304732,7.6e-05,2]
[422348712,1778861443000,-3256.23330091,7.6e-05,2]
[422348713,1778861443000,-285.0,7.6e-05,2]
[422348711,1778861443000,-1179.67946753,7.6e-05,2]
[422348746,1778861446000,-592.78665859,9.123e-05,2]
[422348747,1778861446000,-474.616,9.123e-05,2]
[422348742,1778861446000,-492.0,8.764e-05,2]
[422348748,1778861446000,-276.5150003,9.123e-05,2]
[422348749,1778861446000,-7758.45051604,9.123e-05,2]
[422348744,1778861446000,-514.89174097,9.077e-05,2]
[422348751,1778861446000,-207.0643829,9.222e-05,2]
[422348750,1778861446000,-897.63182507,9.123e-05,2]
[422348752,1778861446000,-498.27573074,9.308e-05,2]
[422348753,1778861446000,-512.3672157,9.423e-05,2]
[422348745,1778861446000,-160.165432,9.112e-05,2]
[422348743,1778861446000,-291.38989044,8.767e-05,2]
[422348738,1778861446000,-160.165432,8.474e-05,2]
[422348735,1778861446000,-1052.0918107,8.219e-05,2]
[422348730,1778861446000,-2509.0,7.659e-05,2]
[422348733,1778861446000,-1000.0,7.967e-05,2]
[422348731,1778861446000,-160.165432,7.836e-05,2]
[422348734,1778861446000,-244.0,7.967e-05,2]
[422348737,1778861446000,-500.0,8.219e-05,2]
[422348732,1778861446000,-151.0,7.869e-05,2]
[422348739,1778861446000,-498.27573074,8.482e-05,2]
[422348728,1778861446000,-498.27573076,7.657e-05,2]
[422348740,1778861446000,-500.0,8.493e-05,2]
[422348729,1778861446000,-497.0,7.659e-05,2]
[422348754,1778861446000,-434.47229719,9.423e-05,2]
[422348741,1778861446000,-1000.0,8.764e-05,2]
[422348755,1778861446000,-512.3672157,9.423e-05,2]
[422348727,1778861446000,-14110.76421282,7.6e-05,2]
[422348758,1778861446000,-512.3672157,9.423e-05,2]
[422348759,1778861446000,-512.3672157,9.423e-05,2]
[422348782,1778861446000,-151.5,0.0001041,2]
[422348783,1778861446000,-151.5,0.0001041,2]
[422348780,1778861446000,-500.0,0.0001039,2]
[422348781,1778861446000,-151.5,0.0001041,2]
[422348779,1778861446000,-223.81571472,0.00010216,2]
[422348770,1778861446000,-791.0,9.64e-05,2]
[422348774,1778861446000,-500.0,9.87e-05,2]
[422348768,1778861446000,-16946.81951625,9.425e-05,2]
[422348773,1778861446000,-7096.48405943,9.834e-05,2]
[422348772,1778861446000,-6090.93747728,9.834e-05,2]
[422348776,1778861446000,-33384.48018682,9.935e-05,2]
[422348775,1778861446000,-38607.91855439,9.935e-05,2]
[422348771,1778861446000,-11974.80655038,9.834e-05,2]
[422348777,1778861446000,-421.1426,0.0001,2]
[422348778,1778861446000,-498.27573074,0.00010033,2]
[422348756,1778861446000,-512.3672157,9.423e-05,2]
[422348766,1778861446000,-512.3672157,9.423e-05,2]
[422348760,1778861446000,-512.3672157,9.423e-05,2]
[422348757,1778861446000,-512.3672157,9.423e-05,2]
[422348761,1778861446000,-512.3672157,9.423e-05,2]
[422348767,1778861446000,-512.3672157,9.423e-05,2]
[422348763,1778861446000,-512.3672157,9.423e-05,2]
[422348764,1778861446000,-512.3672157,9.423e-05,2]
[422348765,1778861446000,-512.3672157,9.423e-05,2]
[422348769,1778861446000,-1000.0,9.64e-05,2]
[422348762,1778861446000,-512.3672157,9.423e-05,2]
[422348797,1778861447000,-443.0,0.00010544,2]
[422348803,1778861447000,-160.0,0.00010678,2]
[422348799,1778861447000,-1000.0,0.00010604,2]
[422348800,1778861447000,-537.6845,0.00010652,2]
[422348804,1778861447000,-161.65638237,0.00010678,2]
[422348806,1778861447000,-557.5788265,0.00010707,2]
[422348810,1778861447000,-498.27573074,0.00010858,2]
[422348808,1778861447000,-262.108369,0.0001078,2]
[422348805,1778861447000,-217.6325,0.00010683,2]
[422348809,1778861447000,-599.60298508,0.00010817,2]
[422348811,1778861447000,-375.18223807,0.00010909,2]
[422348798,1778861447000,-1000.0,0.00010604,2]
[422348807,1778861447000,-578.20924308,0.00010762,2]
[422348796,1778861447000,-185.0,0.00010544,2]
[422348791,1778861447000,-500.0,0.0001041,2]
[422348794,1778861447000,-2202.0,0.00010544,2]
[422348795,1778861447000,-647.0,0.00010544,2]
[422348801,1778861447000,-500.0,0.00010652,2]
[422348802,1778861447000,-160.0,0.00010678,2]
[422348793,1778861447000,-1412.0,0.00010544,2]
[422348785,1778861447000,-151.5,0.0001041,2]
[422348789,1778861447000,-500.0,0.0001041,2]
[422348784,1778861447000,-254.07533501,0.0001041,2]
[422348786,1778861447000,-151.5,0.0001041,2]
[422348790,1778861447000,-500.0,0.0001041,2]
[422348787,1778861447000,-151.5,0.0001041,2]
[422348788,1778861447000,-204.45353009,0.0001041,2]
[422348812,1778861447000,-1495.2871,0.00010958,2]
[422348792,1778861447000,-289.00268781,0.0001041,2]
[422348813,1778861447000,-500.0,0.00010958,2]
[422348824,1778861447000,-567.43,0.00010958,2]
[422348816,1778861447000,-500.0,0.00010958,2]
[422348839,1778861447000,-620.89,0.00010958,2]
[422348841,1778861447000,-933.95,0.00010958,2]
[422348842,1778861447000,-1033.92,0.00010958,2]
[422348843,1778861447000,-2485.45,0.00010958,2]
[422348844,1778861447000,-500.0,0.00010958,2]
[422348845,1778861447000,-302.98725815,0.00010958,2]
[422348840,1778861447000,-567.56,0.00010958,2]
[422348815,1778861447000,-500.0,0.00010958,2]
[422348835,1778861447000,-138.58619233,0.00010958,2]
[422348831,1778861447000,-500.0,0.00010958,2]
[422348834,1778861447000,-436.74380767,0.00010958,2]
[422348833,1778861447000,-500.0,0.00010958,2]
[422348832,1778861447000,-500.0,0.00010958,2]
[422348829,1778861447000,-713.05,0.00010958,2]
[422348830,1778861447000,-500.0,0.00010958,2]
[422348838,1778861447000,-500.0,0.00010958,2]
[422348825,1778861447000,-575.77,0.00010958,2]
[422348828,1778861447000,-500.0,0.00010958,2]
[422348819,1778861447000,-893.05,0.00010958,2]
[422348818,1778861447000,-500.0,0.00010958,2]
[422348817,1778861447000,-718.72,0.00010958,2]
[422348822,1778861447000,-500.0,0.00010958,2]
[422348820,1778861447000,-500.0,0.00010958,2]
[422348814,1778861447000,-500.0,0.00010958,2]
[422348821,1778861447000,-500.0,0.00010958,2]
[422348826,1778861447000,-1032.96,0.00010958,2]
[422348836,1778861447000,-500.0,0.00010958,2]
[422348837,1778861447000,-500.0,0.00010958,2]
[422348827,1778861447000,-500.0,0.00010958,2]
[422348823,1778861447000,-500.0,0.00010958,2]
[422349003,1778862396000,165.963193,4.253e-05,2]
[422349063,1778862632000,-587.0,7.473e-05,2]
[422349057,1778862632000,-151.0,6.738e-05,2]
[422349061,1778862632000,-587.0,6.794e-05,2]
[422349067,1778862632000,-250.0,8.08e-05,2]
[422349065,1778862632000,-32063.99976086,7.621e-05,2]
[422349059,1778862632000,-420.0,6.794e-05,2]
[422349052,1778862632000,-300.0,6.176e-05,2]
[422349054,1778862632000,-1200.0,6.176e-05,2]
[422349050,1778862632000,-300.0,6.176e-05,2]
[422349048,1778862632000,-300.0,6.176e-05,2]
[422349042,1778862632000,-5000.0,5.993e-05,2]
[422349046,1778862632000,-407.31254544,6.146e-05,2]
[422349056,1778862632000,-300.0,6.495e-05,2]
[422349069,1778862632000,-480.62880362,8.146e-05,2]
[422349071,1778862632000,-823.0,8.22e-05,2]
[422349044,1778862632000,-5000.0,6.054e-05,2]
[422349077,1778862632000,-500.0,8.81e-05,2]
[422349073,1778862632000,-233.15855806,8.334e-05,2]
[422349113,1778862632000,-276.36,9.989e-05,2]
[422349109,1778862632000,-1428.50066713,9.989e-05,2]
[422349107,1778862632000,-997.32222237,9.989e-05,2]
[422349096,1778862632000,-1078.08916142,9.989e-05,2]
[422349093,1778862632000,-41640.2922359,9.989e-05,2]
[422349091,1778862632000,-351.98492718,9.972e-05,2]
[422349115,1778862632000,-12147.13375248,9.989e-05,2]
[422349079,1778862632000,-1152.0,9.042e-05,2]
[422349089,1778862632000,-1613.0,9.947e-05,2]
[422349075,1778862632000,-375.02024867,8.39e-05,2]
[422349085,1778862632000,-151.0,9.67e-05,2]
[422349081,1778862632000,-151.0,9.478e-05,2]
[422349087,1778862632000,-351.98492718,9.933e-05,2]
[422349083,1778862632000,-151.0,9.478e-05,2]
[422349143,1778862640000,-500.0,9.993e-05,2]
[422349150,1778862640000,-151.0,0.0001,2]
[422349147,1778862640000,-351.98492722,9.995e-05,2]
[422349146,1778862640000,-500.0,9.994e-05,2]
[422349144,1778862640000,-500.0,9.993e-05,2]
[422349145,1778862640000,-344.76576098,9.993e-05,2]
[422349149,1778862640000,-180.00809806,0.0001,2]
[422349153,1778862640000,-151.0,0.0001,2]
[422349161,1778862640000,-151.0,0.0001,2]
[422349155,1778862640000,-151.0,0.0001,2]
[422349142,1778862640000,-500.0,9.993e-05,2]
[422349148,1778862640000,-363100.39144954,9.995e-05,2]
[422349140,1778862640000,-500.0,9.993e-05,2]
[422349137,1778862640000,-500.0,9.993e-05,2]
[422349152,1778862640000,-151.0,0.0001,2]
[422349141,1778862640000,-500.0,9.993e-05,2]
[422349138,1778862640000,-500.0,9.993e-05,2]
[422349136,1778862640000,-500.0,9.993e-05,2]
[422349134,1778862640000,-500.0,9.993e-05,2]
[422349135,1778862640000,-500.0,9.993e-05,2]
[422349159,1778862640000,-151.0,0.0001,2]
[422349139,1778862640000,-500.0,9.993e-05,2]
[422349132,1778862640000,-487.86091235,9.993e-05,2]
[422349131,1778862640000,-500.0,9.993e-05,2]
[422349130,1778862640000,-304.13060803,9.993e-05,2]
[422349129,1778862640000,-500.0,9.993e-05,2]
[422349128,1778862640000,-39537.3019607,9.989e-05,2]
[422349151,1778862640000,-151.0,0.0001,2]
[422349162,1778862640000,-151.0,0.0001,2]
[422349133,1778862640000,-12.13908765,9.993e-05,2]
[422349157,1778862640000,-151.0,0.0001,2]
[422349156,1778862640000,-151.0,0.0001,2]
[422349192,1778862640000,-500.0,0.0001041,2]
[422349194,1778862640000,-500.0,0.0001041,2]
[422349190,1778862640000,-500.0,0.0001041,2]
[422349188,1778862640000,-500.0,0.0001041,2]
[422349180,1778862640000,-500.0,0.0001041,2]
[422349186,1778862640000,-500.0,0.0001041,2]
[422349179,1778862640000,-500.0,0.0001041,2]
[422349182,1778862640000,-500.0,0.0001041,2]
[422349174,1778862640000,-177.37,0.00010268,2]
[422349173,1778862640000,-500.0,0.00010268,2]
[422349170,1778862640000,-351.98492718,0.0001001,2]
[422349172,1778862640000,-553.9450618,0.00010146,2]
[422349171,1778862640000,-351.98492718,0.00010048,2]
[422349184,1778862640000,-500.0,0.0001041,2]
[422349168,1778862640000,-151.0,0.0001,2]
[422349169,1778862640000,-151.0,0.0001,2]
[422349158,1778862640000,-151.0,0.0001,2]
[422349160,1778862640000,-151.0,0.0001,2]
[422349165,1778862640000,-151.0,0.0001,2]
[422349163,1778862640000,-151.0,0.0001,2]
[422349166,1778862640000,-151.0,0.0001,2]
[422349164,1778862640000,-151.0,0.0001,2]
[422349154,1778862640000,-151.0,0.0001,2]
[422349176,1778862640000,-500.0,0.0001041,2]
[422349177,1778862640000,-500.0,0.0001041,2]
[422349178,1778862640000,-500.0,0.0001041,2]
[422349167,1778862640000,-151.0,0.0001,2]
[422349175,1778862640000,-183.73,0.00010284,2]
[422349236,1778862641000,-944.0,0.0001041,2]
[422349248,1778862641000,-557.5788265,0.00010534,2]
[422349249,1778862641000,-500.0,0.00010542,2]
[422349247,1778862641000,-500.0,0.00010479,2]
[422349233,1778862641000,-944.0,0.0001041,2]
[422349240,1778862641000,-185.0,0.0001041,2]
[422349228,1778862641000,-944.0,0.0001041,2]
[422349230,1778862641000,-944.0,0.0001041,2]
[422349246,1778862641000,-537.6845,0.00010479,2]
[422349234,1778862641000,-944.0,0.0001041,2]
[422349258,1778862641000,-160.0,0.00010721,2]
[422349245,1778862641000,-537.6845,0.00010479,2]
[422349252,1778862641000,-621.78829552,0.00010699,2]
[422349279,1778862641000,-693.3919763,0.00010864,2]
[422349250,1778862641000,-578.20924308,0.00010589,2]
[422349253,1778862641000,-228.79027004,0.000107,2]
[422349262,1778862641000,-644.79446246,0.00010754,2]
[422349255,1778862641000,-2155.96761441,0.000107,2]
[422349251,1778862641000,-599.60298507,0.00010644,2]
[422349257,1778862641000,-160.0,0.00010721,2]
[422349264,1778862641000,-1973.198616,0.00010771,2]
[422349266,1778862641000,-65253.3175336,0.00010771,2]
[422349268,1778862641000,-151.0,0.00010771,2]
[422349270,1778862641000,-228.79027004,0.000108,2]
[422349273,1778862641000,-668.65185757,0.00010809,2]
[422349272,1778862641000,-2155.96761441,0.000108,2]
[422349244,1778862641000,-162.380719,0.00010479,2]
[422349260,1778862641000,-161.65638237,0.00010721,2]
[422349242,1778862641000,-6090.93747728,0.00010411,2]
[422349207,1778862641000,-500.0,0.0001041,2]
[422349226,1778862641000,-944.0,0.0001041,2]
[422349277,1778862641000,-151.0,0.0001085,2]
[422349200,1778862641000,-500.0,0.0001041,2]
[422349201,1778862641000,-500.0,0.0001041,2]
[422349202,1778862641000,-219.33776712,0.0001041,2]
[422349196,1778862641000,-500.0,0.0001041,2]
[422349198,1778862641000,-500.0,0.0001041,2]
[422349205,1778862641000,-500.0,0.0001041,2]
[422349206,1778862641000,-500.0,0.0001041,2]
[422349208,1778862641000,-403.07737979,0.0001041,2]
[422349210,1778862641000,-944.0,0.0001041,2]
[422349212,1778862641000,-944.0,0.0001041,2]
[422349203,1778862641000,-500.0,0.0001041,2]
[422349204,1778862641000,-500.0,0.0001041,2]
[422349238,1778862641000,-964.86344473,0.0001041,2]
[422349213,1778862641000,-944.0,0.0001041,2]
[422349214,1778862641000,-944.0,0.0001041,2]
[422349215,1778862641000,-944.0,0.0001041,2]
[422349211,1778862641000,-944.0,0.0001041,2]
[422349217,1778862641000,-944.0,0.0001041,2]
[422349218,1778862641000,-944.0,0.0001041,2]
[422349219,1778862641000,-944.0,0.0001041,2]
[422349220,1778862641000,-944.0,0.0001041,2]
[422349216,1778862641000,-944.0,0.0001041,2]
[422349225,1778862641000,-944.0,0.0001041,2]
[422349222,1778862641000,-944.0,0.0001041,2]
[422349221,1778862641000,-944.0,0.0001041,2]
[422349224,1778862641000,-944.0,0.0001041,2]
[422349223,1778862641000,-944.0,0.0001041,2]
[422349209,1778862641000,-944.0,0.0001041,2]
[422349275,1778862641000,-500.0,0.00010816,2]
[422349283,1778862641000,-213.257,0.00010895,2]
[422349285,1778862641000,-228.79027004,0.000109,2]
[422349340,1778862641000,-500.0,0.00010958,2]
[422349355,1778862641000,-500.0,0.00010958,2]
[422349353,1778862641000,-1584.84,0.00010958,2]
[422349344,1778862641000,-685.71,0.00010958,2]
[422349357,1778862641000,-500.0,0.00010958,2]
[422349342,1778862641000,-500.0,0.00010958,2]
[422349345,1778862641000,-612.23,0.00010958,2]
[422349359,1778862641000,-500.0,0.00010958,2]
[422349347,1778862641000,-500.0,0.00010958,2]
[422349361,1778862641000,-540.64,0.00010958,2]
[422349373,1778862641000,-553.64,0.00010958,2]
[422349375,1778862641000,-500.0,0.00010958,2]
[422349371,1778862641000,-228.14564734,0.00010958,2]
[422349351,1778862641000,-500.0,0.00010958,2]
[422349377,1778862641000,-500.0,0.00010958,2]
[422349370,1778862641000,-500.0,0.00010958,2]
[422349368,1778862641000,-500.0,0.00010958,2]
[422349379,1778862641000,-500.0,0.00010958,2]
[422349362,1778862641000,-2398.78241951,0.00010958,2]
[422349364,1778862641000,-5391.86318346,0.00010958,2]
[422349381,1778862641000,-1239.35,0.00010958,2]
[422349382,1778862641000,-500.0,0.00010958,2]
[422349384,1778862641000,-500.0,0.00010958,2]
[422349386,1778862641000,-516.4,0.00010958,2]
[422349388,1778862641000,-1911.7,0.00010958,2]
[422349392,1778862641000,-500.0,0.00010958,2]
[422349390,1778862641000,-500.0,0.00010958,2]
[422349395,1778862641000,-500.0,0.00010958,2]
[422349366,1778862641000,-500.0,0.00010958,2]
[422349338,1778862641000,-2444.5698,0.00010958,2]
[422349393,1778862641000,-500.0,0.00010958,2]
[422349334,1778862641000,-500.0,0.00010958,2]
[422349349,1778862641000,-931.36,0.00010958,2]
[422349281,1778862641000,-160.0,0.00010864,2]
[422349289,1778862641000,-150.308,0.000109,2]
[422349291,1778862641000,-600.0,0.00010913,2]
[422349293,1778862641000,-719.04747942,0.00010919,2]
[422349302,1778862641000,-2324.4674,0.00010958,2]
[422349304,1778862641000,-599.69560488,0.00010958,2]
[422349308,1778862641000,-500.0,0.00010958,2]
[422349298,1778862641000,-263.56396474,0.0001095,2]
[422349310,1778862641000,-500.0,0.00010958,2]
[422349300,1778862641000,-4850.906706,0.00010958,2]
[422349295,1778862641000,-1142.0,0.00010941,2]
[422349297,1778862641000,-136605.6494439,0.0001095,2]
[422349306,1778862641000,-500.0,0.00010958,2]
[422349287,1778862641000,-2155.96761441,0.000109,2]
[422349313,1778862641000,-500.0,0.00010958,2]
[422349312,1778862641000,-500.0,0.00010958,2]
[422349329,1778862641000,-500.0,0.00010958,2]
[422349325,1778862641000,-842.55,0.00010958,2]
[422349333,1778862641000,-598.28,0.00010958,2]
[422349323,1778862641000,-500.0,0.00010958,2]
[422349327,1778862641000,-500.0,0.00010958,2]
[422349322,1778862641000,-500.0,0.00010958,2]
[422349314,1778862641000,-582.73,0.00010958,2]
[422349331,1778862641000,-500.0,0.00010958,2]
[422349316,1778862641000,-445.52783597,0.00010958,2]
[422349336,1778862641000,-500.0,0.00010958,2]
[422349318,1778862641000,-500.0,0.00010958,2]
[422349320,1778862641000,-500.0,0.00010958,2]